fUST/lending_fUST_20251008
["ID","MTS","AMOUNT","RATE_DAILY","PERIOD"]
[390012333,1759932633331,-1000.0,0.00019274,2]
[390012335,1759932633340,-151.0,0.00019274,2]
[390012337,1759932633349,-500.0,0.00019274,2]
[390012339,1759932633359,-1000.0,0.00019274,2]
[390012341,1759932633368,-151.0,0.00019274,2]
[390012343,1759932633381,-500.0,0.00019274,2]
[390012345,1759932633390,-1000.0,0.00019274,2]
[390012347,1759932633399,-500.0,0.00019274,2]
[390012349,1759932633409,-1035.43646693,0.00019274,2]
[390012351,1759932633419,-250.0,0.00019274,2]
[390012353,1759932633430,-151.0,0.00019274,2]
[390012355,1759932633441,-500.0,0.00019274,2]
[390012357,1759932633454,-250.0,0.00019274,2]
[390012359,1759932633464,-500.0,0.00019274,2]
[390012361,1759932633473,-151.0,0.00019274,2]
[390012363,1759932633483,-18603.8837,0.00019274,2]
[390012365,1759932633493,-260.07757208,0.00019274,2]
[390012367,1759932633502,-500.0,0.00019274,2]
[390012369,1759932633511,-151.0,0.00019274,2]
[390012371,1759932633521,-500.0,0.00019274,2]
[390012373,1759932633530,-155.786338,0.00019274,2]
[390012375,1759932633539,-500.0,0.00019274,2]
[390012377,1759932633548,-151.0,0.00019274,2]
[390012379,1759932633559,-500.0,0.00019274,2]
[390012381,1759932633568,-151.0,0.00019274,2]
[390012383,1759932633578,-500.0,0.00019274,2]
[390012385,1759932633588,-151.0,0.00019274,2]
[390012387,1759932633597,-151.0,0.00019274,2]
[390012389,1759932633606,-500.0,0.00019274,2]
[390012391,1759932633615,-151.0,0.00019274,2]
[390012393,1759932633624,-155.71135223,0.00019274,2]
[390012395,1759932633634,-518.84593601,0.00019274,2]
[390012397,1759932633643,-185.05224795,0.00019274,2]
[390012399,1759932633652,-500.0,0.00019274,2]
[390012401,1759932633661,-500.0,0.00019274,2]
[390012403,1759932633670,-500.0,0.00019274,2]
[390012405,1759932633680,-250.0,0.00019274,2]
[390012407,1759932633689,-500.0,0.00019274,2]
[390012409,1759932633701,-250.0,0.00019274,2]
[390012411,1759932633710,-500.0,0.00019274,2]
[390012413,1759932633720,-1000.0,0.00019274,2]
[390012415,1759932633730,-250.0,0.00019274,2]
[390012417,1759932633739,-500.0,0.00019274,2]
[390012419,1759932633748,-1000.0,0.00019274,2]
[390012421,1759932633757,-500.0,0.00019274,2]
[390012423,1759932633767,-1000.0,0.00019274,2]
[390012426,1759932633777,-500.0,0.00019274,2]
[390012428,1759932633786,-1000.0,0.00019274,2]
[390012430,1759932633795,-500.0,0.00019274,2]
[390012432,1759932633804,-500.0,0.00019274,2]
[390012434,1759932633813,-500.0,0.00019274,2]
[390012436,1759932633823,-500.0,0.00019274,2]
[390012437,1759932633832,-500.0,0.00019274,2]
[390012440,1759932633842,-500.0,0.00019274,2]
[390012442,1759932633851,-500.0,0.00019274,2]
[390012443,1759932633862,-500.0,0.00019274,2]
[390012445,1759932633872,-500.0,0.00019274,2]
[390012447,1759932633881,-500.0,0.00019274,2]
[390012449,1759932633891,-658.57620859,0.00019284,2]
[390012451,1759932633900,-179.87408814,0.00019345,2]
[390012453,1759932633909,-500.0,0.00019558,2]
[390012455,1759932633919,-619.67572398,0.00019743,2]
[390012456,1759932633928,-470.25025728,0.00019755,2]
[390012457,1759932633937,-653.4093033,0.000198,2]
[390012458,1759932633947,-6117.28558736,0.00019822,2]
[390012490,1759932634579,-3463.15,0.00019822,2]
[390012491,1759932634611,-379.19749853,0.00019822,2]
[390012538,1759932638523,-4875.0,0.00018236,2]
[390012540,1759932638534,-405.21377549,0.00019174,2]
[390012542,1759932638543,-200.0,0.0001951,2]
[390012544,1759932638553,-9332.59431101,0.00019822,2]
[390012547,1759932638563,-500.0,0.00019832,2]
[390012549,1759932638573,-1421.0,0.0001993,2]
[390012551,1759932638583,-1680.0,0.00019983,2]
[390012553,1759932638593,-420.0,0.00019983,2]
[390012555,1759932638602,-1421.0,0.00020015,2]
[390012557,1759932638611,-500.0,0.00020015,2]
[390012559,1759932638621,-947.0,0.00020015,2]
[390012560,1759932638631,-151.33548529,0.00020015,2]
[390012563,1759932638642,-500.0,0.00020015,2]
[390012564,1759932638651,-1421.0,0.00020051,2]
[390012566,1759932638662,-1421.0,0.00020052,2]
[390012569,1759932638672,-1680.0,0.00020081,2]
[390012570,1759932638682,-1000.0,0.000201,2]
[390012573,1759932638693,-500.0,0.00020105,2]
[390012575,1759932638705,-500.0,0.00020106,2]
[390012576,1759932638716,-407.33070079,0.00020106,2]
[390012578,1759932638725,-531.25801959,0.00020106,2]
[390012580,1759932638735,-2000.0,0.00020107,2]
[390012582,1759932638745,-2000.0,0.00020107,2]
[390012584,1759932638754,-1421.0,0.00020128,2]
[390012586,1759932638764,-2290.46551921,0.0002013,2]
[390012625,1759932639178,3000.73992145,0.0002876,120]
[390012661,1759932640819,-1191.68031069,0.0002013,2]
[390012662,1759932640828,-719.25335601,0.00020146,2]
[390012667,1759932641118,-701.74664399,0.00020146,2]
[390012668,1759932641128,-1746.0,0.00020169,2]
[390012669,1759932641137,-1421.0,0.00020179,2]
[390012670,1759932641147,-1421.0,0.00020192,2]
[390012671,1759932641156,-1421.0,0.00020195,2]
[390012672,1759932641165,-973.03,0.00020199,3]
[390012673,1759932641174,-162.7762228,0.000202,2]
[390012674,1759932641184,-302.6424481,0.000202,2]
[390012675,1759932641193,-162.7762228,0.000202,2]
[390012676,1759932641203,-1203.8763462,0.000202,2]
[390012677,1759932641212,-500.0,0.000202,2]
[390012678,1759932641222,-151.0,0.000202,2]
[390012679,1759932641231,-151.0,0.000202,2]
[390012680,1759932641241,-151.34599428,0.000202,2]
[390012681,1759932641250,-500.0,0.000202,2]
[390012682,1759932641259,-500.0,0.000202,2]
[390012683,1759932641269,-151.0,0.000202,2]
[390012684,1759932641278,-1000.0,0.000202,2]
[390012685,1759932641287,-1421.0,0.00020206,2]
[390012686,1759932641297,-739.80651118,0.00020207,2]
[390012687,1759932641306,-2852.2792549,0.00020209,2]
[390012688,1759932641315,-1421.0,0.00020223,2]
[390012689,1759932641325,-500.0,0.00020288,2]
[390012690,1759932641334,-159.04390858,0.00020288,2]
[390012691,1759932641344,-151.0,0.00020288,2]
[390012692,1759932641353,-500.0,0.00020289,2]
[390012693,1759932641362,-947.0,0.00020289,2]
[390012694,1759932641372,-500.0,0.00020289,2]
[390012695,1759932641386,-187.6443569,0.000203,2]
[390012696,1759932641395,-700.50299232,0.00020343,2]
[390012697,1759932641404,-880.49481861,0.0002037,2]
[390012698,1759932641415,-500.0,0.00020379,2]
[390012699,1759932641424,-486.52,0.00020425,3]
[390012700,1759932641434,-500.0,0.00020435,2]
[390012701,1759932641443,-179.0,0.00020435,2]
[390012702,1759932641456,-1946.07,0.00020456,3]
[390012703,1759932641466,-1746.0,0.00020466,2]
[390012704,1759932641475,-500.0,0.00020474,2]
[390012705,1759932641484,-199.37942844,0.00020474,2]
[390012706,1759932641494,-500.0,0.00020474,2]
[390012707,1759932641503,-500.0,0.00020474,2]
[390012708,1759932641513,-152.87937848,0.00020474,2]
[390012709,1759932641522,-179.0,0.00020528,2]
[390012710,1759932641531,-1421.0,0.00020554,2]
[390012711,1759932641541,-500.0,0.00020562,2]
[390012712,1759932641550,-151.0,0.00020562,2]
[390012713,1759932641560,-261.6094418,0.00020562,2]
[390012714,1759932641569,-500.0,0.00020563,2]
[390012715,1759932641579,-947.0,0.00020563,2]
[390012716,1759932641588,-500.0,0.00020563,2]
[390012717,1759932641597,-151.0,0.000206,2]
[390012718,1759932641606,-151.0,0.000206,2]
[390012719,1759932641616,-152.02473839,0.000206,2]
[390012720,1759932641625,-151.0,0.000206,2]
[390012721,1759932641634,-151.0,0.000206,2]
[390012722,1759932641643,-198.0,0.000206,2]
[390012723,1759932641653,-151.0,0.000206,2]
[390012724,1759932641662,-151.0,0.000206,2]
[390012725,1759932641671,-500.0,0.000206,2]
[390012726,1759932641681,-151.0,0.00020606,2]
[390012727,1759932641690,-500.0,0.00020606,2]
[390012728,1759932641699,-500.0,0.00020606,2]
[390012729,1759932641710,-151.0,0.00020606,2]
[390012730,1759932641719,-151.0,0.00020606,2]
[390012731,1759932641729,-151.0,0.00020606,2]
[390012732,1759932641738,-1421.0,0.00020618,2]
[390012733,1759932641748,-1421.0,0.00020636,2]
[390012734,1759932641758,-500.0,0.00020653,2]
[390012735,1759932641767,-151.0,0.00020662,2]
[390012736,1759932641776,-151.0,0.00020662,2]
[390012737,1759932641785,-382.99,0.00020662,2]
[390012738,1759932641795,-151.0,0.00020662,2]
[390012739,1759932641804,-500.0,0.00020674,2]
[390012740,1759932641814,-2255.63307869,0.00020713,2]
[390012741,1759932641823,-261.6094418,0.00020739,2]
[390012742,1759932641832,-153.69621454,0.00020748,2]
[390012743,1759932641842,-152.21167746,0.00020748,2]
[390012744,1759932641853,-500.0,0.00020748,2]
[390012745,1759932641862,-168.0,0.00020762,2]
[390012746,1759932641871,-155.0,0.00020774,2]
[390012747,1759932641880,-179.0,0.00020804,2]
[390012748,1759932641889,-500.0,0.00020836,2]
[390012749,1759932641898,-500.0,0.00020837,2]
[390012750,1759932641909,-947.0,0.00020837,2]
[390012751,1759932641918,-151.0,0.00020874,2]
[390012752,1759932641928,-151.0,0.00020874,2]
[390012753,1759932641936,-151.0,0.00020874,2]
[390012754,1759932641945,-151.0,0.00020874,2]
[390012755,1759932641956,-500.0,0.00020874,2]
[390012756,1759932641965,-151.0,0.0002088,2]
[390012757,1759932641975,-500.0,0.0002088,2]
[390012758,1759932641984,-500.0,0.0002088,2]
[390012759,1759932641993,-151.0,0.0002088,2]
[390012760,1759932642003,-164.28947417,0.0002088,2]
[390012761,1759932642012,-151.0,0.0002088,2]
[390012762,1759932642022,-261.6094418,0.00020916,2]
[390012763,1759932642031,-500.0,0.00020927,2]
[390012764,1759932642041,-151.0,0.00020936,2]
[390012765,1759932642051,-781.33026067,0.00020943,2]
[390012766,1759932642060,-200.0,0.00021,2]
[390012767,1759932642071,-166.0870885,0.00021,10]
[390012768,1759932642081,-2184.022,0.00021027,2]
[390012769,1759932642090,-632.483,0.00021027,2]
[390012770,1759932642099,-261.6094418,0.00021092,2]
[390012771,1759932642109,-900.0,0.000211,2]
[390012772,1759932642334,-160.0,0.00021108,5]
[390012773,1759932642344,-500.0,0.00021111,2]
[390012774,1759932642354,-947.0,0.00021111,2]
[390012775,1759932642363,-151.0,0.00021148,2]
[390012776,1759932642376,-151.0,0.00021148,2]
[390012777,1759932642386,-151.56421726,0.00021148,2]
[390012778,1759932642395,-173.5979126,0.00021148,2]
[390012779,1759932642404,-442.45263202,0.00021148,2]
[390012780,1759932642415,-152.59747206,0.00021154,2]
[390012781,1759932642424,-304.34371811,0.00021154,2]
[390012782,1759932642434,-255.83521969,0.00021154,2]
[390012783,1759932642444,-193.5155658,0.00021154,2]
[390012784,1759932642455,-151.0,0.00021154,2]
[390012785,1759932642465,-2.07343526,0.00021169,2]
[390012804,1759932643805,-500.0,0.00020674,2]
[390012805,1759932643815,-500.0,0.00020674,2]
[390012806,1759932643824,-500.0,0.00020674,2]
[390012807,1759932643834,-492.264125,0.00020674,2]
[390012808,1759932643844,-157.92656474,0.00021169,2]
[390012809,1759932643854,-160.0,0.00021169,2]
[390012810,1759932643864,-402.0838479,0.00021169,2]
[390012811,1759932643875,-234.25206901,0.00021169,2]
[390012812,1759932643884,-160.0,0.00021169,2]
[390012813,1759932643894,-160.0,0.00021169,2]
[390012814,1759932643903,-160.0,0.00021169,2]
[390012815,1759932643913,-160.0,0.00021169,2]
[390012816,1759932643923,-161.0,0.000212,3]
[390012817,1759932643932,-161.0,0.000212,3]
[390012818,1759932643941,-18840.020001,0.000212,3]
[390012819,1759932643950,-10450.0110549,0.000212,2]
[390012820,1759932643961,-160.0,0.000212,3]
[390012821,1759932643971,-402.0838479,0.000212,3]
[390012822,1759932643981,-1427.8596306,0.000212,2]
[390012823,1759932643991,-2426.98998326,0.000212,2]
[390012824,1759932644000,-500.0,0.00021201,2]
[390012825,1759932644009,-151.0,0.0002121,2]
[390012826,1759932644019,-250.0,0.0002125,2]
[390012827,1759932644028,-243.26,0.00021259,3]
[390012828,1759932644038,-150.083,0.0002126,2]
[390012829,1759932644048,-212.814,0.0002126,2]
[390012830,1759932644057,-229.188,0.0002126,2]
[390012831,1759932644067,-250.0,0.0002126,2]
[390012832,1759932644077,-191.91,0.0002126,2]
[390012833,1759932644086,-263.53,0.0002126,2]
[390012834,1759932644095,-294.02,0.0002126,2]
[390012835,1759932644104,-151.0,0.00021269,7]
[390012836,1759932644114,-151.0,0.00021269,7]
[390012837,1759932644124,-151.0,0.00021269,7]
[390012838,1759932644134,-151.0,0.00021269,7]
[390012839,1759932644144,-267.79785,0.00021269,7]
[390012840,1759932644154,-151.0,0.00021269,7]
[390012841,1759932644163,-151.0,0.00021269,7]
[390012842,1759932644173,-181.146816,0.00021269,7]
[390012843,1759932644185,-151.0,0.00021269,7]
[390012844,1759932644194,-220.214233,0.00021269,7]
[390012845,1759932644207,-151.0,0.00021269,7]
[390012846,1759932644217,-151.0,0.00021269,7]
[390012847,1759932644227,-151.0,0.00021269,7]
[390012848,1759932644238,-151.0,0.00021269,7]
[390012849,1759932644249,-151.0,0.00021269,7]
[390012850,1759932644261,-151.0,0.00021269,7]
[390012851,1759932644271,-153.012223,0.00021269,7]
[390012852,1759932644282,-151.0,0.00021269,7]
[390012853,1759932644292,-151.0,0.00021269,7]
[390012854,1759932644302,-151.0,0.00021269,7]
[390012855,1759932644311,-151.0,0.00021269,7]
[390012856,1759932644321,-151.0,0.00021269,7]
[390012857,1759932644331,-151.0,0.00021269,7]
[390012858,1759932644340,-151.0,0.00021269,7]
[390012859,1759932644349,-261.6094418,0.00021269,2]
[390012860,1759932644360,-160.0,0.00021269,3]
[390012861,1759932644370,-402.0838479,0.00021269,3]
[390012862,1759932644383,-10000.0,0.00021269,2]
[390012863,1759932644393,-28723.40779043,0.00021269,3]
[390012864,1759932644403,-151.0,0.000213,3]
[390012865,1759932644414,-160.0,0.00021369,7]
[390012866,1759932644424,-402.0838479,0.00021369,7]
[390012867,1759932644435,-500.0,0.00021369,2]
[390012868,1759932644446,-2501.57,0.00021369,2]
[390012869,1759932644465,-500.0,0.00021369,2]
[390012870,1759932644479,-500.0,0.00021369,2]
[390012871,1759932644488,-286.74293775,0.00021369,2]
[390012872,1759932644498,-752.77,0.00021369,2]
[390012873,1759932644507,-1117.38,0.00021369,2]
[390012874,1759932644517,-500.0,0.00021369,2]
[390012875,1759932644527,-500.0,0.00021369,2]
[390012876,1759932644536,-500.0,0.00021369,2]
[390012877,1759932644545,-500.0,0.00021369,2]
[390012878,1759932644555,-519.21,0.00021369,2]
[390012879,1759932644564,-481.38808305,0.00021369,2]
[390012880,1759932644574,-500.0,0.00021369,2]
[390012881,1759932644584,-500.0,0.00021369,2]
[390012882,1759932644593,-500.0,0.00021369,2]
[390012883,1759932644603,-500.0,0.00021369,2]
[390012884,1759932644613,-500.0,0.00021369,2]
[390012885,1759932644622,-500.0,0.00021369,2]
[390012886,1759932644632,-500.0,0.00021369,2]
[390012887,1759932644642,-500.0,0.00021369,2]
[390012888,1759932644652,-500.0,0.00021369,2]
[390012889,1759932644661,-500.0,0.00021369,2]
[390012890,1759932644671,-500.0,0.00021369,2]
[390012891,1759932644681,-500.0,0.00021369,2]
[390012892,1759932644690,-500.0,0.00021369,2]
[390012893,1759932644700,-510.1,0.00021369,2]
[390012894,1759932644713,-500.0,0.00021369,2]
[390012895,1759932644723,-500.0,0.00021369,2]
[390012896,1759932644733,-500.0,0.00021369,2]
[390012897,1759932644743,-500.0,0.00021369,2]
[390012898,1759932644754,-522.47,0.00021369,2]
[390012899,1759932644764,-522.47,0.00021369,2]
[390012900,1759932644773,-522.47,0.00021369,2]
[390012901,1759932644783,-522.47,0.00021369,2]
[390012902,1759932644793,-522.47,0.00021369,2]
[390012903,1759932644803,-522.47,0.00021369,2]
[390012904,1759932644813,-522.47,0.00021369,2]
[390012905,1759932644823,-522.47,0.00021369,2]
[390012906,1759932644832,-522.47,0.00021369,2]
[390012907,1759932644842,-522.47,0.00021369,2]
[390012908,1759932644851,-522.47,0.00021369,2]
[390012909,1759932644860,-522.47,0.00021369,2]
[390012910,1759932644869,-522.47,0.00021369,2]
[390012911,1759932644879,-522.47,0.00021369,2]
[390012912,1759932644889,-522.47,0.00021369,2]
[390012913,1759932644899,-522.47,0.00021369,2]
[390012914,1759932644908,-522.47,0.00021369,2]
[390012915,1759932644917,-522.47,0.00021369,2]
[390012916,1759932644927,-522.47,0.00021369,2]
[390012917,1759932644936,-522.47,0.00021369,2]
[390012918,1759932644947,-522.47,0.00021369,2]
[390012919,1759932644959,-522.47,0.00021369,2]
[390012920,1759932644968,-522.47,0.00021369,2]
[390012921,1759932644978,-522.70185873,0.00021369,2]
[390012922,1759932644987,-500.0,0.00021369,2]
[390012923,1759932644997,-500.0,0.00021369,2]
[390012924,1759932645007,-500.0,0.00021369,2]
[390012925,1759932645017,-500.0,0.00021369,2]
[390012926,1759932645026,-500.0,0.00021369,2]
[390012927,1759932645035,-320.16572029,0.00021369,2]
[390012951,1759932647131,-405.21377544,0.00019865,2]
[390012952,1759932647141,-10574.51604015,0.000202,2]
[390012953,1759932647152,-1385.66157919,0.000202,2]
[390012954,1759932647163,-1191.26578932,0.000202,2]
[390012976,1759932712377,573.8948706,0.0002612,55]
[390012977,1759932720713,1000.0,0.00027397,120]
[390012978,1759932906635,2503.0,0.00026,60]
[390012980,1759933050152,1000.0,0.00027397,120]
[390012982,1759933283134,1000.0,0.00028767,120]
[390012983,1759933297418,500.0,0.00028767,120]
[390012984,1759933306979,500.0,0.00028767,120]
[390012986,1759933307989,1132.108837,0.00013699,2]
[390012988,1759933318681,500.0,0.00028767,120]
[390012989,1759933333914,500.0,0.00028767,120]
[390012990,1759933348755,510.0,0.00028767,120]
[390012991,1759933453310,151.0,0.000181,2]
[390012992,1759933474706,500.0,0.00017964,3]
[390012993,1759933476781,162.45,0.00017964,3]
[390013015,1759933638003,-151.0,0.0001813,2]
[390013016,1759933638035,-151.0,0.0001816,2]
[390013017,1759933638064,-151.0,0.0001819,2]
[390013018,1759933638093,-151.0,0.00018221,2]
[390013019,1759933638121,-151.0,0.00018251,2]
[390013020,1759933638150,-151.0,0.00018281,2]
[390013021,1759933638178,-151.0,0.00018312,2]
[390013022,1759933638206,-151.0,0.00018342,2]
[390013023,1759933638234,-151.0,0.00018372,2]
[390013024,1759933638262,-151.0,0.00018403,2]
[390013025,1759933638502,-6120.56076932,0.00018433,2]
[390013026,1759933639846,-10000.01,0.00018433,2]
[390013027,1759933643892,-1821.32911886,0.00018433,2]
[390013028,1759933643921,-6357.35176228,0.00018433,2]
[390013029,1759933667751,28315.29831884,0.00018,2]
[390013030,1759933679127,1000.0,0.00027397,120]
[390013032,1759933694245,5014.0,0.00018,2]
[390013034,1759933717662,4518.6805481,0.00017969,2]
[390013035,1759933769616,769.61,0.00028767,120]
[390013036,1759933822723,-151.0,0.00018433,2]
[390013037,1759933822754,-200.0,0.00018433,2]
[390013038,1759933822784,-151.0,0.00018463,2]
[390013039,1759933822814,-151.0,0.00018493,2]
[390013040,1759933822844,-500.01594495,0.000185,2]
[390013041,1759933822874,-151.0,0.00018524,2]
[390013042,1759933822910,-151.0,0.00018554,2]
[390013043,1759933822939,-151.0,0.00018584,2]
[390013044,1759933822969,-151.0,0.00018615,2]
[390013045,1759933823000,-151.0,0.00018645,2]
[390013046,1759933823031,-151.0,0.00018675,2]
[390013047,1759933823063,-151.0,0.00018706,2]
[390013048,1759933823092,-151.0,0.00018736,2]
[390013049,1759933823123,-151.0,0.00018766,2]
[390013050,1759933823155,-151.0,0.00018796,2]
[390013051,1759933823185,-151.0,0.00018827,2]
[390013052,1759933823215,-287.0,0.00018856,2]
[390013053,1759933823246,-300.0,0.00018856,2]
[390013054,1759933823277,-300.0,0.00018856,2]
[390013055,1759933823308,-300.0,0.00018856,2]
[390013056,1759933823340,-797.9781101,0.00018856,2]
[390013057,1759933823580,-402.0218899,0.00018856,2]
[390013058,1759933823609,-151.0,0.00018857,2]
[390013059,1759933823640,-151.0,0.00018887,2]
[390013060,1759933823673,-151.0,0.00018918,2]
[390013061,1759933823708,-151.0,0.00018948,2]
[390013062,1759933823738,-151.0,0.00018978,2]
[390013063,1759933823770,-151.0,0.00019009,2]
[390013064,1759933823801,-151.0,0.00019039,2]
[390013065,1759933823831,-151.0,0.00019069,2]
[390013066,1759933823862,-151.0,0.000191,2]
[390013067,1759933823893,-528.48499685,0.00019181,2]
[390013068,1759933825201,-415.2746014,0.00019277,2]
[390013069,1759933825463,-5481.97580035,0.00019277,2]
[390013070,1759933826632,-3687.48499685,0.00019277,2]
[390013071,1759933826662,-179.83814567,0.00019345,2]
[390013072,1759933826694,-160.0,0.00019489,3]
[390013073,1759933826723,-500.0,0.00019532,2]
[390013074,1759933826754,-445.36371496,0.00019532,2]
[390013075,1759933826857,-54.63628504,0.00019532,2]
[390013076,1759933828601,-500.0,0.00019532,2]
[390013077,1759933828631,-500.0,0.00019532,2]
[390013078,1759933828663,-500.0,0.00019532,2]
[390013079,1759933828696,-500.0,0.00019532,2]
[390013080,1759933828725,-500.0,0.00019532,2]
[390013081,1759933828755,-500.0,0.00019532,2]
[390013082,1759933828786,-500.0,0.00019532,2]
[390013083,1759933828816,-500.0,0.00019532,2]
[390013084,1759933828846,-545.19450403,0.00019532,2]
[390013103,1759933832662,384.8,0.00028767,120]
[390013119,1759933832828,-607.75774638,0.00019781,2]
[390013121,1759933832837,-166.88291097,0.00019906,2]
[390013124,1759933832847,-177.67,0.00019996,2]
[390013126,1759933832857,-3001.5410313,0.0002,2]
[390013127,1759933832867,-7982.56297488,0.0002,2]
[390013129,1759933832879,-831.55186148,0.0002,2]
[390013135,1759933832919,-1480.000025,0.0002,2]
[390013228,1759933838668,-500.0,0.00019999,2]
[390013230,1759933838677,-214.24587953,0.00019999,2]
[390013232,1759933838688,-493.20682594,0.00019999,2]
[390013234,1759933838701,-500.0,0.00019999,2]
[390013236,1759933838711,-400.28609537,0.00019999,2]
[390013238,1759933838721,-247.93608636,0.00019999,2]
[390013241,1759933838739,-161.93777355,0.00019999,2]
[390013243,1759933838749,-161.97359365,0.00019999,2]
[390013245,1759933838759,-393.3580031,0.00019999,2]
[390013247,1759933838770,-500.0,0.00019999,2]
[390013249,1759933838781,-3500.48827131,0.0002,2]
[390013251,1759933838793,-1011.7194644,0.0002,2]
[390013254,1759933838818,-1133.60906219,0.0002,2]
[390013296,1759933840845,-416.31000001,0.0002,2]
[390013297,1759933840856,-5677.76407601,0.0002,2]
[390013298,1759933840867,-1945.34955943,0.0002,2]
[390013301,1759933841127,-1606.97244131,0.0002,2]
[390013350,1759933846791,-5073.7235815,0.0002,2]
[390013351,1759933846801,-500.0,0.00020006,2]
[390013352,1759933846811,-200.0,0.000201,2]
[390013353,1759933846820,-500.0,0.00020108,2]
[390013354,1759933846830,-393.00293679,0.00020129,2]
[390013355,1759933846839,-168.0,0.00020134,2]
[390013356,1759933846848,-500.0,0.00020159,2]
[390013357,1759933846858,-168.0,0.0002016,2]
[390013358,1759933846867,-602.59348171,0.00020187,2]
[390013359,1759933852444,151.0,0.000181,2]
[390013361,1759933919935,1500.0,0.00028767,120]
[390013362,1759933949056,1500.0,0.00028767,120]
[390013363,1759933971100,1500.0,0.00028767,120]
[390013364,1759933985739,1500.0,0.00028767,120]
[390013537,1759934046799,1500.0,0.00028767,120]
[390013872,1759934058247,2000.0,0.00028767,120]
[390014020,1759934075883,1600.0,0.00028767,120]
[390014021,1759934079017,160.54221253,0.000287,120]
[390014094,1759934083467,199.999999,0.0002875,120]
[390014095,1759934119680,2000.0,0.00028767,120]
[390014096,1759934236195,302.0,0.00028767,120]
[390014097,1759934280403,993.000001,0.0002876,120]
[390014098,1759934314783,500.22737627,0.00028767,120]
[390014099,1759934342007,2000.0,0.00028767,120]
[390014101,1759934352273,1000.0,0.0002876,120]
[390014102,1759934354219,2000.0,0.00028767,120]
[390014104,1759934362689,302.0,0.00028767,120]
[390014105,1759934363879,2000.0,0.00028767,120]
[390014107,1759934374189,2000.0,0.00028767,120]
[390014108,1759934410004,302.0,0.00028767,120]
[390014109,1759934433492,3000.0,0.00028767,120]
[390014110,1759934441253,2500.0,0.00028767,120]
[390014111,1759934458922,1003.0,0.00028767,120]
[390014112,1759934550258,2000.0,0.00028767,120]
[390014113,1759934560345,59504.0,0.00018,2]
[390014127,1759934664321,1000.0,0.00028767,120]
[390014129,1759934716121,-151.0,0.000183,2]
[390014130,1759934716149,-518.95372146,0.000183,2]
[390014131,1759934716180,-151.0,0.000185,2]
[390014132,1759934716209,-151.0,0.000187,2]
[390014133,1759934716252,-151.0,0.000189,2]
[390014134,1759934716297,-596.79677968,0.000189,2]
[390014135,1759934716348,-151.0,0.000191,2]
[390014136,1759934716390,-682.074752,0.00019168,2]
[390014137,1759934716432,-1301.02356487,0.0001928,2]
[390014138,1759934716475,-180.78999279,0.00019345,2]
[390014139,1759934716518,-730.7323784,0.00019451,2]
[390014140,1759934716824,-469.2676216,0.00019451,2]
[390014141,1759934720033,-153.4661823,0.00019452,2]
[390014142,1759934720061,-1305.8872606,0.00019452,2]
[390014143,1759934720088,-1301.02356487,0.0001949,2]